[Event "*** Titled Tuesday Blitz"]
[Site "Chess.com"]
[Date "2020.05.05"]
[Round "10"]
[White "Volodar_Murzin"]
[Black "wonderfultime"]
[Result "1-0"]
[WhiteElo "2660"]
[BlackElo "2895"]
[TimeControl "180+1"]
[EndTime "11:59:56 PDT"]
[Termination "Volodar_Murzin won on time"]

1. Nf3 {[%clk 0:02:59.4]} 1... Nf6 {[%clk 0:02:56.1]} 2. g3 {[%clk 0:03:00.3]}
2... d5 {[%clk 0:02:55.3]} 3. Bg2 {[%clk 0:03:00.9]} 3... Bg4 {[%clk 0:02:55.9]}
4. O-O {[%clk 0:03:01.6]} 4... e6 {[%clk 0:02:55.9]} 5. d3 {[%clk 0:03:01.6]}
5... Be7 {[%clk 0:02:54.3]} 6. Nbd2 {[%clk 0:03:01.5]} 6... O-O {[%clk
0:02:54.8]} 7. h3 {[%clk 0:03:01.3]} 7... Bh5 {[%clk 0:02:54.7]} 8. e4 {[%clk
0:02:57]} 8... c5 {[%clk 0:02:55]} 9. Re1 {[%clk 0:02:54.8]} 9... Nc6 {[%clk
0:02:55.3]} 10. c3 {[%clk 0:02:48.7]} 10... b5 {[%clk 0:02:48.7]} 11. Qe2 {[%clk
0:02:43.6]} 11... b4 {[%clk 0:02:47.1]} 12. Nf1 {[%clk 0:02:41]} 12... bxc3
{[%clk 0:02:46]} 13. bxc3 {[%clk 0:02:38.1]} 13... Bg6 {[%clk 0:02:46.3]} 14.
Nh4 {[%clk 0:02:34.6]} 14... Re8 {[%clk 0:02:41.8]} 15. Nxg6 {[%clk 0:02:34.3]}
15... hxg6 {[%clk 0:02:42.7]} 16. Nh2 {[%clk 0:02:31.6]} 16... Qa5 {[%clk
0:02:39.4]} 17. Bd2 {[%clk 0:02:30.5]} 17... dxe4 {[%clk 0:02:25.1]} 18. dxe4
{[%clk 0:02:27.4]} 18... Rad8 {[%clk 0:02:18]} 19. e5 {[%clk 0:02:20.8]} 19...
Nxe5 {[%clk 0:02:17.2]} 20. Red1 {[%clk 0:02:10.3]} 20... c4 {[%clk 0:02:15.8]}
21. Nf3 {[%clk 0:02:01.8]} 21... Nd3 {[%clk 0:02:15.4]} 22. Nd4 {[%clk
0:01:55.2]} 22... Bc5 {[%clk 0:01:54.7]} 23. Nc6 {[%clk 0:01:48.1]} 23... Qa4
{[%clk 0:01:54.3]} 24. Be3 {[%clk 0:01:43.5]} 24... Bxe3 {[%clk 0:01:31.5]} 25.
Qxe3 {[%clk 0:01:44.4]} 25... Nd5 {[%clk 0:01:31.8]} 26. Bxd5 {[%clk 0:01:14.9]}
26... Rxd5 {[%clk 0:01:32.7]} 27. Nd4 {[%clk 0:01:03.5]} 27... Rb8 {[%clk
0:01:30.9]} 28. Rdb1 {[%clk 0:00:56.6]} 28... Rdd8 {[%clk 0:01:26]} 29. Qe2
{[%clk 0:00:43.6]} 29... e5 {[%clk 0:01:20.6]} 30. Nf3 {[%clk 0:00:40.2]} 30...
Rb5 {[%clk 0:01:16.6]} 31. Ng5 {[%clk 0:00:28.5]} 31... Rxb1+ {[%clk 0:00:34.9]}
32. Rxb1 {[%clk 0:00:27.3]} 32... f6 {[%clk 0:00:35.8]} 33. Ne6 {[%clk
0:00:22.2]} 33... Re8 {[%clk 0:00:34]} 34. Nc7 {[%clk 0:00:19.9]} 34... Rc8
{[%clk 0:00:25.9]} 35. Nd5 {[%clk 0:00:18.4]} 35... Qd7 {[%clk 0:00:26.4]} 36.
Qf3 {[%clk 0:00:13.9]} 36... Rd8 {[%clk 0:00:16.7]} 37. Ne3 {[%clk 0:00:13.3]}
37... Qe6 {[%clk 0:00:15.1]} 38. Qe4 {[%clk 0:00:11.6]} 38... Rc8 {[%clk
0:00:10.2]} 39. Qxg6 {[%clk 0:00:09.4]} 39... Qf7 {[%clk 0:00:08.6]} 40. Qg4
{[%clk 0:00:09.4]} 40... Rd8 {[%clk 0:00:05.6]} 41. Nf5 {[%clk 0:00:08.5]} 41...
Kf8 {[%clk 0:00:05]} 42. Qh4 {[%clk 0:00:07.6]} 42... Nc5 {[%clk 0:00:02.7]} 43.
Qh8+ {[%clk 0:00:06.7]} 43... Qg8 {[%clk 0:00:03.3]} 44. Qh4 {[%clk 0:00:07.2]}
44... Qf7 {[%clk 0:00:01.1]} 45. Ne3 {[%clk 0:00:05.2]} 1-0

[Event "*** Titled Tuesday Blitz"]
[Site "Chess.com"]
[Date "2020.05.05"]
[Round "10"]
[White "rasmussvane"]
[Black "platy3"]
[Result "1-0"]
[WhiteElo "2875"]
[BlackElo "2725"]
[TimeControl "180+1"]
[EndTime "11:59:57 PDT"]
[Termination "rasmussvane won on time"]

1. Nf3 {[%clk 0:03:00.9]} 1... Nf6 {[%clk 0:02:58.9]} 2. g3 {[%clk 0:03:00.7]}
2... d5 {[%clk 0:02:58.8]} 3. Bg2 {[%clk 0:03:01.6]} 3... e6 {[%clk 0:02:59.4]}
4. O-O {[%clk 0:03:02.1]} 4... c5 {[%clk 0:03:00]} 5. c4 {[%clk 0:03:02.2]} 5...
d4 {[%clk 0:03:00]} 6. e3 {[%clk 0:03:02.9]} 6... Nc6 {[%clk 0:03:00]} 7. exd4
{[%clk 0:03:03.4]} 7... cxd4 {[%clk 0:03:00.6]} 8. d3 {[%clk 0:03:04]} 8... Nd7
{[%clk 0:02:59.5]} 9. Re1 {[%clk 0:03:03.4]} 9... Be7 {[%clk 0:02:58.8]} 10. Bf4
{[%clk 0:03:02]} 10... O-O {[%clk 0:02:54.3]} 11. Na3 {[%clk 0:03:02.2]} 11...
Nc5 {[%clk 0:02:38.1]} 12. Nc2 {[%clk 0:02:50]} 12... a5 {[%clk 0:02:37.1]} 13.
Ne5 {[%clk 0:02:49.5]} 13... Nb4 {[%clk 0:02:28.8]} 14. a3 {[%clk 0:02:36.3]}
14... Nxc2 {[%clk 0:02:25]} 15. Qxc2 {[%clk 0:02:37.2]} 15... f6 {[%clk
0:02:25.4]} 16. Nf3 {[%clk 0:02:37.7]} 16... e5 {[%clk 0:02:25.8]} 17. Bd2
{[%clk 0:02:38.5]} 17... Bf5 {[%clk 0:02:24.8]} 18. b4 {[%clk 0:01:50]} 18...
axb4 {[%clk 0:02:13.3]} 19. axb4 {[%clk 0:01:45.4]} 19... Nxd3 {[%clk
0:02:11.7]} 20. Rxa8 {[%clk 0:01:33]} 20... Qxa8 {[%clk 0:01:56.5]} 21. Nh4
{[%clk 0:01:32.1]} 21... Nxe1 {[%clk 0:01:47.8]} 22. Bd5+ {[%clk 0:01:31.1]}
22... Kh8 {[%clk 0:00:59.6]} 23. Qxf5 {[%clk 0:01:29.9]} 23... Qe8 {[%clk
0:00:54.5]} 24. Bxe1 {[%clk 0:01:25.1]} 24... g6 {[%clk 0:00:54.3]} 25. Qe6
{[%clk 0:01:17.1]} 25... Bd8 {[%clk 0:00:51.1]} 26. Qxe8 {[%clk 0:01:05.4]}
26... Rxe8 {[%clk 0:00:52]} 27. Bxb7 {[%clk 0:01:05.6]} 27... e4 {[%clk
0:00:37.1]} 28. c5 {[%clk 0:01:01.3]} 28... Re5 {[%clk 0:00:28.7]} 29. Ng2
{[%clk 0:00:21.4]} 29... g5 {[%clk 0:00:28.5]} 30. Kf1 {[%clk 0:00:20.9]} 30...
f5 {[%clk 0:00:27.2]} 31. f4 {[%clk 0:00:17.8]} 31... Re7 {[%clk 0:00:20.3]} 32.
Bc6 {[%clk 0:00:14.5]} 32... Ra7 {[%clk 0:00:18.9]} 33. b5 {[%clk 0:00:06.3]}
33... Ra1 {[%clk 0:00:19.1]} 34. b6 {[%clk 0:00:06.6]} 34... d3 {[%clk
0:00:16.6]} 35. Kf2 {[%clk 0:00:05.1]} 35... Ra2+ {[%clk 0:00:16.5]} 36. Ke3
{[%clk 0:00:03.2]} 36... Re2+ {[%clk 0:00:13.1]} 37. Kd4 {[%clk 0:00:03.1]}
37... Rxe1 {[%clk 0:00:11.5]} 38. Ne3 {[%clk 0:00:01.7]} 38... gxf4 {[%clk
0:00:04.7]} 39. gxf4 {[%clk 0:00:01.9]} 39... d2 {[%clk 0:00:04.6]} 40. Ba4
{[%clk 0:00:01.9]} 40... Ra1 {[%clk 0:00:03.3]} 41. Bd1 {[%clk 0:00:02.3]} 41...
Ra3 {[%clk 0:00:03]} 42. Nc4 {[%clk 0:00:02.4]} 42... Ra1 {[%clk 0:00:02.7]} 43.
Ne3 {[%clk 0:00:02.9]} 43... Bf6+ {[%clk 0:00:01.8]} 44. Kd5 {[%clk 0:00:03.2]}
44... Ra3 {[%clk 0:00:02.2]} 45. Nc4 {[%clk 0:00:03.6]} 45... Rd3+ {[%clk
0:00:02.1]} 46. Kc6 {[%clk 0:00:03.7]} 46... Bd4 {[%clk 0:00:01.4]} 47. b7
{[%clk 0:00:04]} 47... Rb3 {[%clk 0:00:02.1]} 48. Nb6 {[%clk 0:00:03.8]} 48...
Rxb6+ {[%clk 0:00:01.4]} 49. cxb6 {[%clk 0:00:03.6]} 49... Be5 {[%clk
0:00:02.3]} 50. fxe5 {[%clk 0:00:04.5]} 50... e3 {[%clk 0:00:01.8]} 51. b8=Q+
{[%clk 0:00:05.4]} 1-0

[Event "*** Titled Tuesday Blitz"]
[Site "Chess.com"]
[Date "2020.05.05"]
[Round "10"]
[White "Zhani-Z"]
[Black "francyIM"]
[Result "1-0"]
[WhiteElo "2528"]
[BlackElo "2626"]
[TimeControl "180+1"]
[EndTime "11:59:57 PDT"]
[Termination "Zhani-Z won by resignation"]

1. e4 {[%clk 0:03:00.9]} 1... e5 {[%clk 0:02:55.7]} 2. Nf3 {[%clk 0:03:00.3]}
2... Nc6 {[%clk 0:02:54.5]} 3. Nc3 {[%clk 0:03:00.9]} 3... Nf6 {[%clk
0:02:54.4]} 4. Bb5 {[%clk 0:03:01.6]} 4... Bb4 {[%clk 0:02:51.6]} 5. O-O {[%clk
0:02:59.7]} 5... O-O {[%clk 0:02:49.2]} 6. d3 {[%clk 0:03:00.2]} 6... Bxc3
{[%clk 0:02:48.6]} 7. bxc3 {[%clk 0:02:59.9]} 7... d6 {[%clk 0:02:49.5]} 8. Bg5
{[%clk 0:02:58.1]} 8... h6 {[%clk 0:02:49]} 9. Bh4 {[%clk 0:02:57.8]} 9... Kh7
{[%clk 0:02:43]} 10. Nd2 {[%clk 0:02:40.3]} 10... g5 {[%clk 0:02:35.2]} 11. Bg3
{[%clk 0:02:38.7]} 11... Ne7 {[%clk 0:02:35.8]} 12. f3 {[%clk 0:02:31.1]} 12...
Ng6 {[%clk 0:02:34]} 13. Bf2 {[%clk 0:02:29.4]} 13... a5 {[%clk 0:02:32.7]} 14.
Bc4 {[%clk 0:02:19.1]} 14... a4 {[%clk 0:02:30.7]} 15. a3 {[%clk 0:02:18.5]}
15... c6 {[%clk 0:02:27.7]} 16. d4 {[%clk 0:02:16.2]} 16... exd4 {[%clk
0:02:26.1]} 17. cxd4 {[%clk 0:02:16]} 17... d5 {[%clk 0:02:25.6]} 18. Ba2 {[%clk
0:02:10.7]} 18... Be6 {[%clk 0:02:20.1]} 19. c3 {[%clk 0:02:06.6]} 19... Qd7
{[%clk 0:02:17.5]} 20. Bb1 {[%clk 0:02:05.5]} 20... Kg7 {[%clk 0:02:13.8]} 21.
g3 {[%clk 0:02:01.1]} 21... Nh7 {[%clk 0:02:04.6]} 22. e5 {[%clk 0:01:43.4]}
22... f6 {[%clk 0:02:02.8]} 23. Qc2 {[%clk 0:01:39.6]} 23... Qf7 {[%clk
0:02:00.6]} 24. exf6+ {[%clk 0:01:32.2]} 24... Qxf6 {[%clk 0:02:01.5]} 25. c4
{[%clk 0:01:11.4]} 25... Bf5 {[%clk 0:01:44.9]} 26. Qxf5 {[%clk 0:01:11.1]}
26... Qxf5 {[%clk 0:01:45.8]} 27. Bxf5 {[%clk 0:01:11]} 27... Rxf5 {[%clk
0:01:45.3]} 28. Rab1 {[%clk 0:01:11.3]} 28... Ra7 {[%clk 0:01:41.9]} 29. cxd5
{[%clk 0:01:07.2]} 29... Rxd5 {[%clk 0:01:41.1]} 30. Nc4 {[%clk 0:01:01.4]}
30... Nf6 {[%clk 0:01:18.4]} 31. Ne3 {[%clk 0:00:59.4]} 31... Rda5 {[%clk
0:01:11]} 32. d5 {[%clk 0:00:59]} 32... Nxd5 {[%clk 0:01:03.4]} 33. Nxd5 {[%clk
0:00:58.6]} 33... cxd5 {[%clk 0:01:00.5]} 34. Bxa7 {[%clk 0:00:58.3]} 34... Rxa7
{[%clk 0:01:01.4]} 35. Rfd1 {[%clk 0:00:56.8]} 35... Ne7 {[%clk 0:00:59.1]} 36.
Rb6 {[%clk 0:00:53.5]} 36... h5 {[%clk 0:00:45.7]} 37. Rd4 {[%clk 0:00:51.9]}
37... Kf7 {[%clk 0:00:43.9]} 38. Kf2 {[%clk 0:00:51.2]} 38... Ra5 {[%clk
0:00:40.8]} 39. Rxb7 {[%clk 0:00:50.5]} 39... Ke6 {[%clk 0:00:39.6]} 40. Rbb4
{[%clk 0:00:43.7]} 40... Nc6 {[%clk 0:00:26.5]} 41. Rxa4 {[%clk 0:00:43.6]}
41... Rc5 {[%clk 0:00:27]} 42. Rd2 {[%clk 0:00:40.1]} 42... Rc1 {[%clk 0:00:27]}
43. Ra8 {[%clk 0:00:36.3]} 43... d4 {[%clk 0:00:26.3]} 44. a4 {[%clk 0:00:31.9]}
44... Kd5 {[%clk 0:00:24.3]} 45. a5 {[%clk 0:00:30]} 45... Rc5 {[%clk
0:00:20.5]} 46. a6 {[%clk 0:00:29]} 46... Kc4 {[%clk 0:00:21.4]} 47. Rc8 {[%clk
0:00:26.9]} 47... Na7 {[%clk 0:00:18.9]} 48. Rxc5+ {[%clk 0:00:25.7]} 48... Kxc5
{[%clk 0:00:19.8]} 49. Rb2 {[%clk 0:00:25.4]} 49... Kc4 {[%clk 0:00:19]} 50. Rb7
{[%clk 0:00:25.1]} 50... d3 {[%clk 0:00:19]} 51. Rxa7 {[%clk 0:00:23.9]} 1-0

[Event "*** Titled Tuesday Blitz"]
[Site "Chess.com"]
[Date "2020.05.05"]
[Round "10"]
[White "Maghalashvili"]
[Black "VincentKeymer"]
[Result "1-0"]
[WhiteElo "2809"]
[BlackElo "2720"]
[TimeControl "180+1"]
[EndTime "12:00:00 PDT"]
[Termination "Maghalashvili won by resignation"]

1. Nf3 {[%clk 0:03:00.9]} 1... d5 {[%clk 0:02:59.4]} 2. g3 {[%clk 0:02:55.7]}
2... c6 {[%clk 0:02:59.2]} 3. Bg2 {[%clk 0:02:54.8]} 3... Bg4 {[%clk 0:02:59.7]}
4. O-O {[%clk 0:02:54.2]} 4... Nd7 {[%clk 0:02:59.7]} 5. d4 {[%clk 0:02:48.3]}
5... Ngf6 {[%clk 0:02:58]} 6. h3 {[%clk 0:02:48]} 6... Bf5 {[%clk 0:02:57.9]} 7.
c4 {[%clk 0:02:45.6]} 7... e6 {[%clk 0:02:57.5]} 8. Nc3 {[%clk 0:02:43.8]} 8...
h6 {[%clk 0:02:55.2]} 9. Nd2 {[%clk 0:02:35.9]} 9... Be7 {[%clk 0:02:45.5]} 10.
e4 {[%clk 0:02:31.4]} 10... dxe4 {[%clk 0:02:45.7]} 11. Ndxe4 {[%clk 0:02:29.5]}
11... Nxe4 {[%clk 0:02:43.9]} 12. Nxe4 {[%clk 0:02:26.6]} 12... Nf6 {[%clk
0:02:43.9]} 13. Nc3 {[%clk 0:02:12.4]} 13... O-O {[%clk 0:02:43.3]} 14. Bf4
{[%clk 0:02:09.1]} 14... Bd6 {[%clk 0:02:35.8]} 15. Qd2 {[%clk 0:02:03.9]} 15...
Qb8 {[%clk 0:02:29]} 16. Bxd6 {[%clk 0:01:59.9]} 16... Qxd6 {[%clk 0:02:29.9]}
17. Rfe1 {[%clk 0:01:57.8]} 17... Rad8 {[%clk 0:02:25.3]} 18. Rad1 {[%clk
0:01:55.3]} 18... Rd7 {[%clk 0:02:17]} 19. Qe3 {[%clk 0:01:48.4]} 19... Re8
{[%clk 0:01:58.3]} 20. b3 {[%clk 0:01:42.9]} 20... a6 {[%clk 0:01:58]} 21. Rd2
{[%clk 0:01:38.6]} 21... Qb4 {[%clk 0:01:50.5]} 22. Ree2 {[%clk 0:01:32.5]}
22... Bg6 {[%clk 0:01:49.4]} 23. g4 {[%clk 0:01:30.3]} 23... Red8 {[%clk
0:01:44.4]} 24. f4 {[%clk 0:01:25.8]} 24... Qb6 {[%clk 0:01:37.8]} 25. Na4
{[%clk 0:01:23.2]} 25... Qa7 {[%clk 0:01:30]} 26. Nc5 {[%clk 0:01:19.6]} 26...
Rd6 {[%clk 0:01:29.4]} 27. Kh2 {[%clk 0:01:13.7]} 27... b6 {[%clk 0:01:25.7]}
28. Na4 {[%clk 0:01:11.2]} 28... Qc7 {[%clk 0:01:20.5]} 29. Nxb6 {[%clk
0:01:07.3]} 29... c5 {[%clk 0:01:09]} 30. dxc5 {[%clk 0:01:04.6]} 30... Rxd2
{[%clk 0:01:08.5]} 31. Rxd2 {[%clk 0:01:04.4]} 31... Rxd2 {[%clk 0:01:08.2]} 32.
Qxd2 {[%clk 0:01:02.6]} 32... Qxc5 {[%clk 0:01:08.7]} 33. Na4 {[%clk 0:01:00.6]}
33... Qc7 {[%clk 0:01:08.3]} 34. Qe3 {[%clk 0:00:55.6]} 34... Nd7 {[%clk
0:01:02.5]} 35. c5 {[%clk 0:00:53.7]} 35... h5 {[%clk 0:01:02]} 36. c6 {[%clk
0:00:51.2]} 36... Nf6 {[%clk 0:00:57.8]} 37. Qe5 {[%clk 0:00:47.5]} 37... Ne8
{[%clk 0:00:53.1]} 38. Qxc7 {[%clk 0:00:43.9]} 38... Nxc7 {[%clk 0:00:54]} 39.
Nc5 {[%clk 0:00:42]} 39... hxg4 {[%clk 0:00:53.1]} 40. hxg4 {[%clk 0:00:40.1]}
40... Kf8 {[%clk 0:00:35.5]} 41. b4 {[%clk 0:00:40]} 41... Ke7 {[%clk
0:00:34.2]} 42. Bf1 {[%clk 0:00:39.9]} 42... Kd6 {[%clk 0:00:31.2]} 43. Nxa6
{[%clk 0:00:40]} 43... Nxa6 {[%clk 0:00:30.4]} 44. Bxa6 {[%clk 0:00:39.7]} 44...
Kxc6 {[%clk 0:00:30.9]} 45. Bc4 {[%clk 0:00:39.5]} 45... Bc2 {[%clk 0:00:25.9]}
46. Kg3 {[%clk 0:00:39.1]} 46... Bd1 {[%clk 0:00:23.6]} 47. g5 {[%clk
0:00:37.4]} 47... Bc2 {[%clk 0:00:19.1]} 48. Kf3 {[%clk 0:00:37]} 48... Kb6
{[%clk 0:00:18.9]} 49. Ke3 {[%clk 0:00:37]} 49... Kc6 {[%clk 0:00:19.2]} 50. Kd4
{[%clk 0:00:37.2]} 50... Kb6 {[%clk 0:00:18.9]} 51. Ke5 {[%clk 0:00:35.4]} 51...
Kc6 {[%clk 0:00:19.2]} 52. Bb3 {[%clk 0:00:31.3]} 52... Bxb3 {[%clk 0:00:03]}
53. axb3 {[%clk 0:00:31]} 53... Kb5 {[%clk 0:00:03.9]} 54. g6 {[%clk 0:00:26.7]}
54... fxg6 {[%clk 0:00:03.7]} 55. Kxe6 {[%clk 0:00:26.8]} 55... Kxb4 {[%clk
0:00:04.1]} 56. Kf7 {[%clk 0:00:26.6]} 56... Kxb3 {[%clk 0:00:03.9]} 57. Kxg7
{[%clk 0:00:26.5]} 57... Kc4 {[%clk 0:00:04.8]} 58. Kxg6 {[%clk 0:00:26.7]}
58... Kd5 {[%clk 0:00:05.7]} 59. f5 {[%clk 0:00:26.9]} 1-0

[Event "*** Titled Tuesday Blitz"]
[Site "Chess.com"]
[Date "2020.05.05"]
[Round "10"]
[White "Matibar"]
[Black "KoustavChatterjee1"]
[Result "0-1"]
[WhiteElo "2775"]
[BlackElo "2614"]
[TimeControl "180+1"]
[EndTime "12:00:00 PDT"]
[Termination "KoustavChatterjee1 won by resignation"]

1. Nf3 {[%clk 0:03:00.9]} 1... Nf6 {[%clk 0:03:00.9]} 2. c4 {[%clk 0:03:00.2]}
2... e6 {[%clk 0:02:59.8]} 3. g3 {[%clk 0:03:00.3]} 3... d5 {[%clk 0:03:00]} 4.
Bg2 {[%clk 0:03:01]} 4... dxc4 {[%clk 0:02:59.9]} 5. Qa4+ {[%clk 0:02:59]} 5...
c6 {[%clk 0:03:00.2]} 6. Qxc4 {[%clk 0:02:59.6]} 6... b5 {[%clk 0:03:00.4]} 7.
Qc2 {[%clk 0:02:56.3]} 7... Bb7 {[%clk 0:03:00.4]} 8. O-O {[%clk 0:02:56.2]}
8... c5 {[%clk 0:02:57.5]} 9. a4 {[%clk 0:02:53.3]} 9... b4 {[%clk 0:02:47.6]}
10. d3 {[%clk 0:02:52.8]} 10... Nbd7 {[%clk 0:02:47.3]} 11. Nbd2 {[%clk
0:02:51.3]} 11... Be7 {[%clk 0:02:47.5]} 12. Nc4 {[%clk 0:02:51.4]} 12... O-O
{[%clk 0:02:47.5]} 13. a5 {[%clk 0:02:51.7]} 13... a6 {[%clk 0:02:46.6]} 14. e4
{[%clk 0:02:47.1]} 14... Bc6 {[%clk 0:02:43.5]} 15. Be3 {[%clk 0:02:45.8]} 15...
Bb5 {[%clk 0:02:41.6]} 16. Nfd2 {[%clk 0:02:45.9]} 16... Ng4 {[%clk 0:02:33.7]}
17. Bf4 {[%clk 0:02:45.8]} 17... Bf6 {[%clk 0:02:27.3]} 18. Nd6 {[%clk
0:02:18.9]} 18... e5 {[%clk 0:02:09]} 19. Be3 {[%clk 0:02:09.1]} 19... Nxe3
{[%clk 0:02:08.3]} 20. fxe3 {[%clk 0:02:09.4]} 20... Bg5 {[%clk 0:02:09.2]} 21.
N2c4 {[%clk 0:01:52.5]} 21... Nb8 {[%clk 0:02:07.3]} 22. Rf5 {[%clk 0:01:49.5]}
22... Nc6 {[%clk 0:02:03.3]} 23. Raf1 {[%clk 0:01:43.9]} 23... f6 {[%clk
0:02:01.7]} 24. Qb3 {[%clk 0:01:01.7]} 24... Kh8 {[%clk 0:01:53.2]} 25. Rxg5
{[%clk 0:00:53.6]} 25... Bxc4 {[%clk 0:01:43.9]} 26. Nxc4 {[%clk 0:00:44.8]}
26... fxg5 {[%clk 0:01:42.3]} 27. Rxf8+ {[%clk 0:00:43]} 27... Qxf8 {[%clk
0:01:43.2]} 28. Qd1 {[%clk 0:00:40.1]} 28... Rd8 {[%clk 0:01:40.8]} 29. Bf1
{[%clk 0:00:37.7]} 29... Qf6 {[%clk 0:01:36.4]} 30. Be2 {[%clk 0:00:35.6]} 30...
Rf8 {[%clk 0:01:34]} 31. Qf1 {[%clk 0:00:35.6]} 31... Qxf1+ {[%clk 0:01:21.2]}
32. Bxf1 {[%clk 0:00:36.5]} 32... b3 {[%clk 0:01:19.7]} 33. Bh3 {[%clk
0:00:29.7]} 33... Rd8 {[%clk 0:01:16.9]} 34. Bf1 {[%clk 0:00:27.7]} 34... Rb8
{[%clk 0:01:16]} 35. Bh3 {[%clk 0:00:24.9]} 35... Rd8 {[%clk 0:01:10.9]} 36. Bf1
{[%clk 0:00:24.8]} 36... Kg8 {[%clk 0:01:09.3]} 37. Kf2 {[%clk 0:00:24.8]} 37...
Kf7 {[%clk 0:01:09.3]} 38. Ke1 {[%clk 0:00:24.4]} 38... Kf6 {[%clk 0:01:07.1]}
39. Kd2 {[%clk 0:00:24.2]} 39... Rb8 {[%clk 0:01:06.9]} 40. Bh3 {[%clk
0:00:23.9]} 40... Ke7 {[%clk 0:01:00]} 41. Kc3 {[%clk 0:00:22.2]} 41... Rb4
{[%clk 0:00:59.6]} 42. Bc8 {[%clk 0:00:20.8]} 42... Ra4 {[%clk 0:00:56.2]} 43.
Kxb3 {[%clk 0:00:20.5]} 43... Ra1 {[%clk 0:00:55.8]} 44. Kc3 {[%clk 0:00:20]}
44... Nxa5 {[%clk 0:00:55.6]} 45. Nxe5 {[%clk 0:00:20.3]} 45... Rc1+ {[%clk
0:00:55.1]} 46. Kd2 {[%clk 0:00:20.1]} 46... Nb3+ {[%clk 0:00:55.3]} 47. Ke2
{[%clk 0:00:20.6]} 47... Rc2+ {[%clk 0:00:50.9]} 48. Kf3 {[%clk 0:00:21]} 48...
h5 {[%clk 0:00:50.9]} 49. Nc4 {[%clk 0:00:18.1]} 49... Rxh2 {[%clk 0:00:44.5]}
50. e5 {[%clk 0:00:17.2]} 50... Nd2+ {[%clk 0:00:44.1]} 51. Nxd2 {[%clk
0:00:16]} 51... Rxd2 {[%clk 0:00:45]} 52. Bxa6 {[%clk 0:00:15.8]} 52... Rxb2
{[%clk 0:00:44.5]} 53. Bc4 {[%clk 0:00:15.3]} 53... Rb4 {[%clk 0:00:43.4]} 54.
Bd5 {[%clk 0:00:11.7]} 54... Ra4 {[%clk 0:00:41.8]} 55. Bc6 {[%clk 0:00:10.6]}
55... Rb4 {[%clk 0:00:41.3]} 56. Bd5 {[%clk 0:00:10.6]} 56... g4+ {[%clk
0:00:39.8]} 57. Kf2 {[%clk 0:00:11]} 57... Rb2+ {[%clk 0:00:39.9]} 58. Kg1
{[%clk 0:00:11.1]} 58... Rd2 {[%clk 0:00:39.8]} 59. Be4 {[%clk 0:00:10.9]} 59...
Ke6 {[%clk 0:00:39.6]} 60. Bg6 {[%clk 0:00:11.2]} 60... Kxe5 {[%clk 0:00:39.8]}
61. Bxh5 {[%clk 0:00:11.7]} 61... Rxd3 {[%clk 0:00:40.3]} 62. Kf2 {[%clk
0:00:12.2]} 62... Rd2+ {[%clk 0:00:39.9]} 63. Ke1 {[%clk 0:00:12.4]} 63... Rg2
{[%clk 0:00:39.8]} 64. Bxg4 {[%clk 0:00:12.7]} 64... Rxg3 {[%clk 0:00:39.9]} 0-1

[Event "*** Titled Tuesday Blitz"]
[Site "Chess.com"]
[Date "2020.05.05"]
[Round "10"]
[White "stoleriu"]
[Black "Shuvalov"]
[Result "1-0"]
[WhiteElo "2566"]
[BlackElo "2445"]
[TimeControl "180+1"]
[EndTime "12:00:02 PDT"]
[Termination "stoleriu won on time"]

1. e4 {[%clk 0:03:00.9]} 1... e6 {[%clk 0:02:59.8]} 2. d4 {[%clk 0:03:00.4]}
2... d5 {[%clk 0:03:00]} 3. Nc3 {[%clk 0:03:00]} 3... Bb4 {[%clk 0:02:59.3]} 4.
exd5 {[%clk 0:02:59.8]} 4... exd5 {[%clk 0:02:59.2]} 5. Bd3 {[%clk 0:03:00.4]}
5... Nc6 {[%clk 0:02:58.8]} 6. a3 {[%clk 0:03:00.8]} 6... Be7 {[%clk 0:02:57.9]}
7. Nge2 {[%clk 0:02:57]} 7... Bf6 {[%clk 0:02:57.8]} 8. Be3 {[%clk 0:02:54.5]}
8... h5 {[%clk 0:02:55.8]} 9. Qd2 {[%clk 0:02:52.3]} 9... Nge7 {[%clk
0:02:54.9]} 10. h3 {[%clk 0:02:45.2]} 10... Bf5 {[%clk 0:02:54.4]} 11. O-O-O
{[%clk 0:02:42.6]} 11... Qd7 {[%clk 0:02:52.8]} 12. Rhe1 {[%clk 0:02:34.6]}
12... O-O-O {[%clk 0:02:52.1]} 13. Na4 {[%clk 0:02:24.2]} 13... Bxd3 {[%clk
0:02:41]} 14. Qxd3 {[%clk 0:02:25.1]} 14... Qf5 {[%clk 0:02:00.2]} 15. Nc5
{[%clk 0:02:19]} 15... Qxd3 {[%clk 0:01:57.8]} 16. Nxd3 {[%clk 0:02:19.9]} 16...
Ng6 {[%clk 0:01:52.9]} 17. g3 {[%clk 0:02:02.4]} 17... Nce7 {[%clk 0:01:32]} 18.
Bd2 {[%clk 0:01:46.8]} 18... Nf5 {[%clk 0:01:26.6]} 19. c3 {[%clk 0:01:47]}
19... c6 {[%clk 0:01:22.4]} 20. Ng1 {[%clk 0:01:44.2]} 20... Rde8 {[%clk
0:01:19.3]} 21. Nf3 {[%clk 0:01:37.3]} 21... Re4 {[%clk 0:01:17.1]} 22. Nc5
{[%clk 0:01:32.2]} 22... Rxe1 {[%clk 0:01:14.8]} 23. Rxe1 {[%clk 0:01:33.1]}
23... b6 {[%clk 0:01:12.9]} 24. Nd3 {[%clk 0:01:32.8]} 24... Kd7 {[%clk
0:01:10.1]} 25. Bg5 {[%clk 0:01:21.2]} 25... Re8 {[%clk 0:01:04.9]} 26. Bxf6
{[%clk 0:01:16.8]} 26... gxf6 {[%clk 0:01:04.6]} 27. Rxe8 {[%clk 0:01:15.4]}
27... Kxe8 {[%clk 0:01:05.5]} 28. Kd2 {[%clk 0:01:16.2]} 28... Nd6 {[%clk
0:01:04.7]} 29. Kc2 {[%clk 0:01:11]} 29... Ne4 {[%clk 0:01:00.7]} 30. Nd2 {[%clk
0:01:10.4]} 30... f5 {[%clk 0:00:56.8]} 31. Nf1 {[%clk 0:00:55.3]} 31... Kd7
{[%clk 0:00:54]} 32. f3 {[%clk 0:00:54.2]} 32... Nd6 {[%clk 0:00:53]} 33. Ne3
{[%clk 0:00:53.1]} 33... Ke6 {[%clk 0:00:43.5]} 34. b3 {[%clk 0:00:33.2]} 34...
f4 {[%clk 0:00:38.1]} 35. Nxf4+ {[%clk 0:00:21.1]} 35... Nxf4 {[%clk 0:00:37]}
36. gxf4 {[%clk 0:00:22]} 36... Nf5 {[%clk 0:00:33.8]} 37. Nf1 {[%clk
0:00:15.9]} 37... h4 {[%clk 0:00:24.8]} 38. Kd3 {[%clk 0:00:15.8]} 38... Ng3
{[%clk 0:00:21.8]} 39. Ne3 {[%clk 0:00:16.1]} 39... Nh5 {[%clk 0:00:15.7]} 40.
Ng2 {[%clk 0:00:16]} 40... Kf6 {[%clk 0:00:12.9]} 41. Ke3 {[%clk 0:00:15.5]}
41... Ng3 {[%clk 0:00:07.9]} 42. Nxh4 {[%clk 0:00:15.5]} 42... Nh5 {[%clk
0:00:08.2]} 43. Ng2 {[%clk 0:00:11.3]} 43... Kf5 {[%clk 0:00:08.5]} 44. Nh4+
{[%clk 0:00:10.6]} 44... Kf6 {[%clk 0:00:08.8]} 45. Ng2 {[%clk 0:00:08.3]} 45...
Kf5 {[%clk 0:00:09.2]} 46. a4 {[%clk 0:00:07.6]} 46... a5 {[%clk 0:00:08.6]} 47.
Kf2 {[%clk 0:00:06.2]} 47... Kf6 {[%clk 0:00:03.8]} 48. Ke3 {[%clk 0:00:04]}
48... Kf5 {[%clk 0:00:04.1]} 49. b4 {[%clk 0:00:03.8]} 49... Kf6 {[%clk
0:00:02.2]} 50. bxa5 {[%clk 0:00:04]} 50... bxa5 {[%clk 0:00:03.1]} 51. Ne1
{[%clk 0:00:04.3]} 1-0